Cogmind - Beta 17.1 @@@ ROGUE MODE // 2026.09.04 @ 22:03:39 Player: pindsvinesluger Result: Destroyed by G-47 Trooper with Particle Gun Performance ------------- Evolutions (1) 500 Regions Visited (2) 400 Robots Destroyed (30) 150 Value Destroyed (435) 435 Prototype IDs (0) 0 Alien Tech Used (0) 0 Bonus (0) 0 TOTAL SCORE: 1485 Bonus ------- None Cogmind --------- Core Integrity 0/400 Matter 0/300 Energy 63/250 System Corruption 0% Temperature Cool (9) Movement Flying (117) Ox1 Location -9/Materials Parts ------- > --- POWER (1) -------- Ion Engine > --- PROPULSION (4) --- Flight Unit Flight Unit > --- UTILITY (2) ------ Small Storage Unit > --- WEAPON (2) ------- EM Pulse Gun > --- INVENTORY (8) ---- Flight Unit Datajack Peak State ------------ > --- POWER ------------ Light Ion Engine > --- PROPULSION ------- Aluminum Leg Aluminum Leg Flight Unit Flight Unit > --- UTILITY ---------- Small Storage Unit > --- WEAPON ----------- High-powered Shotgun High-powered Shotgun > --- INVENTORY -------- Ion Engine Flight Unit Flight Unit Flight Unit EM Pulse Gun Datajack [Rating: 12] Favorites ----------- Power Light Ion Engine Engine Light Ion Engine Propulsion Aluminum Leg Leg Aluminum Leg Wheel Wheel Flight Unit Flight Unit Utility Small Storage Unit Storage Small Storage Unit Weapon Small Laser Energy Gun Small Laser Ballistic Gun High-powered Shotgun Ballistic Cannon Light Cannon Launcher Rocket Launcher Build | -11 -10 -9 ------- Run | Yrd Mat Mat Slots Evolved 2 | . . 2 Power . | . . . Propulsion 2 | . . 2 Utility . | . . . Weapon . | . . . Parts Attached 24 | 6 2 16 Power 2 | 1 . 1 Engine 2 | 1 . 1 Core . | . . . Reactor . | . . . Propulsion 13 | 2 2 9 Treads . | . . . Leg 2 | . 2 . Wheel 2 | 2 . . Hover . | . . . Flight 9 | . . 9 Utility 1 | 1 . . Device . | . . . Storage 1 | 1 . . Processor . | . . . Hackware . | . . . Protection . | . . . Artifact . | . . . Weapon 8 | 2 . 6 Energy Gun 3 | 2 . 1 Energy Cannon . | . . . Ballistic Gun 2 | . . 2 Ballistic Cannon 2 | . . 2 Launcher 1 | . . 1 Special Weapon . | . . . Impact Weapon . | . . . Slashing Weapon . | . . . Piercing Weapon . | . . . Special Melee Weapon . | . . . Unidentified Prototypes . | . . . Parts Lost 11 | . . 11 Power 1 | . . 1 Propulsion 5 | . . 5 Utility . | . . . Weapon 5 | . . 5 Highest Loss Streak 11 | . . 11 To Critical Strikes . | . . . Average Backups 6 | 1 6 7 Power . | . 1 1 Propulsion 3 | . 4 4 Utility . | . . . Weapon . | . 1 1 Tool/Special . | . . . Unused Backups 1 | . . 1 Power . | . . . Propulsion . | . . . Utility . | . . . Weapon . | . . . Tool/Special 1 | . . 1 Average Slot Usage (%) 78 | . 85 67 Engine 11 | . 14 7 Leg 15 | . 21 6 Wheel 4 | . 6 . Flight 8 | . . 22 Storage 12 | . 14 11 Energy Gun 18 | . 28 1 Ballistic Gun 6 | . . 16 Peak Build Rating 12 | 6 6 12 Average Rating 6 | 4 6 9 On Entrance 4 | . 6 6 Avg Prop Armor Cover (%) 8 | . . 8 Naked Turns . | . . . Heaviest Build 15 | 10 10 15 Greatest Support 20 | 20 20 20 Greatest Overweight (x) 4 | . . 4 Average Overweight (x) . | . . . Largest Inventory Capacity 8 | 8 8 8 Average Capacity 7 | 5 8 8 Most Carried 8 | 4 8 8 Average Carried 6 | 1 6 6 Final Capacity 8 | 8 8 8 Final Carried 8 | 4 8 2 Class Distribution -------------------- 85% | Mutant 14% | Scavenger-Sprinter Dominant Class ---------------- Mutant | -10/Materials Mutant | -9/Materials Resources | -11 -10 -9 ----------- Run | Yrd Mat Mat Matter Collected 350 | 260 20 70 Remotely . | . . . Salvage Created 562 | . 359 203 Parts 53 | . 32 21 Haulers Intercepted . | . . . Recyclers Shooed 3 | . 3 . Parts Field Recycled . | . . . Retrieved Matter . | . . . Parts Self-Destructed . | . . . Prevented . | . . . Parts Restored . | . . . Kills | -11 -10 -9 ------- Run | Yrd Mat Mat Combat Hostiles Destroyed 18 | . 7 11 Guns 16 | . 7 9 Cannons 1 | . . 1 AOE 1 | . . 1 Classes Destroyed 8 | . 6 2 Worker 1 | . . 1 Builder 5 | . 3 2 Recycler 2 | . 2 . Operator 2 | . 1 1 Watcher 2 | . 1 1 Swarmer 13 | . 6 7 Grunt 4 | . 1 3 Duelist 1 | . . 1 Best Kill Streak 11 | . 4 11 Combat Bots Only 6 | . 3 6 Max Kills in Single Turn 2 | . 2 2 Gunslinging 1 | . 1 1 Exploded 1 | . . 1 Melee . | . . . Uniques/NPCs Destroyed . | . . . Combat | -11 -10 -9 -------- Run | Yrd Mat Mat Hostile Shots Fired 164 | . 17 147 Missed 50 | . 3 47 Hits 114 | . 14 100 Melee 4 | . . 4 Projectile 110 | . 14 96 Critical Strikes 6 | . . 6 Damage Taken 1377 | . 116 1261 Core 444 | . 44 400 Absorbed by Shields . | . . . Core Remaining (%) 91 | 100 82 . Volleys Fired 52 | . 24 28 Largest 2 | . 2 2 Hottest 80 | . 80 58 Shots Fired 98 | . 48 50 Gun 87 | . 48 39 Cannon 6 | . . 6 Launcher 5 | . . 5 Special . | . . . Kinetic 45 | . . 45 Thermal 48 | . 48 . Explosive 5 | . . 5 Electromagnetic . | . . . Robot Hit Streak 4 | . 4 4 Robot Miss Streak 6 | . 4 6 Penetration Max . | . . . Secondary Targets 4 | . 1 3 Max Gunslinging Chain 1 | . 1 1 Shots Hit Robots 51 | . 23 28 Core Hits 45 | . 19 26 Critical Kills . | . . . Critical Parts Destroyed . | . . . Critical Strikes . | . . . Melee Attacks . | . . . Impact . | . . . Slashing . | . . . Piercing . | . . . Sneak Attacks . | . . . Combat Hostiles . | . . . Follow-up Attacks . | . . . Damage Inflicted 1245 | . 278 967 Guns 701 | . 272 429 Cannons 94 | . . 94 Explosions 444 | . . 444 Melee . | . . . Ramming 6 | . 6 . Kinetic 523 | . . 523 Thermal 272 | . 272 . Explosive 444 | . . 444 Electromagnetic . | . . . Impact . | . . . Slashing . | . . . Piercing . | . . . Highest Corruption . | . . . Average Corruption . | . . . Corruption Purged . | . . . Corruption Blocked . | . . . Overload Shots . | . . . Overflow Damage 6 | . . 6 Projectiles . | . . . Explosions 6 | . . 6 Melee . | . . . Knockbacks 2 | . . 2 Impact . | . . . Kinetic 2 | . . 2 Secondary . | . . . Self-Inflicted Damage . | . . . Shots . | . . . Rammed . | . . . Targets Rammed 3 | . 3 . Kicked 3 | . 3 . Crushed . | . . . Highest Temperature 83 | . 74 83 Average Temperature 23 | . 26 15 Received Heat Transfer 591 | . 12 579 Siege Activations . | . . . Martial Activations . | . . . Shielding Activations . | . . . Robots Disrupted . | . . . Combat Hostiles . | . . . Robots Corrupted . | . . . Combat Hostiles . | . . . Parts Fried . | . . . Impact Corruptions . | . . . Robots Melted . | . . . Combat Hostiles . | . . . Parts Melted . | . . . Heat Transferred 600 | . 600 . Parts Sabotaged . | . . . Parts Stolen . | . . . Parts Stripped . | . . . Power Chain Reactions . | . . . Alert | -11 -10 -9 ------- Run | Yrd Mat Mat Maximum Alert Level 2 | . . 2 Low Security (%) 85 | 100 100 58 Level 1 12 | . . 36 Level 2 1 | . . 4 Level 3 . | . . . Level 4 . | . . . Level 5 . | . . . High Security . | . . . Max Security . | . . . Peak Influence 437 | . 110 437 Initial 16 | . . 16 Average 90 | . 53 174 Influence Increases 760 | . 211 549 Destroy 0b10 Robot/C 360 | . 140 220 Destroy 0b10 Robot/NC 60 | . 35 25 Destroy Leader 74 | . 32 42 Successful Hack 6 | . 4 2 Disable Machine 30 | . . 30 Destroy Structure 35 | . . 35 Lose Combat Pursuer 195 | . . 195 Influence Decreases 393 | . 170 223 Entered New Map 25 | . . 25 Time Decay 258 | . 170 88 Lost Part 110 | . . 110 Squads Dispatched 4 | . 1 3 Investigation 2 | . 1 1 Extermination . | . . . Reinforcement 2 | . . 2 Assault . | . . . Garrison . | . . . Intercept . | . . . Searches Triggered . | . . . Construction Impeded 1 | . . 1 Haulers Reinforced . | . . . Active Scanning Responses . | . . . Cargo Convoy Interrupts . | . . . Stealth | -11 -10 -9 --------- Run | Yrd Mat Mat Distress Signals 3 | . 1 2 Communications Jammed . | . . . Distress Signals . | . . . Times Spotted 39 | . 12 27 Peak Tracking Total 11 | . 4 11 Tactical Retreats 3 | . . 3 Traps | -11 -10 -9 ------- Run | Yrd Mat Mat Traps Triggered 1 | . 1 . Indirectly . | . . . Trap Hack Attempts . | . . . Triggered . | . . . Disarmed . | . . . Reprogrammed . | . . . Reused . | . . . Traps Extracted . | . . . Installed . | . . . Triggered . | . . . Machines | -11 -10 -9 ---------- Run | Yrd Mat Mat Machines Disabled 2 | . . 2 Max in Single Turn 1 | . . 1 Machines Repaired . | . . . Machines Dismantled . | . . . Machines Sabotaged . | . . . Overloaded Fab Kills . | . . . Hacking | -11 -10 -9 --------- Run | Yrd Mat Mat Machines Accessed 4 | . 3 1 Terminals 4 | . 3 1 Fabricators . | . . . Repair Stations . | . . . Recycling Units . | . . . Scanalyzers . | . . . Garrison Access . | . . . Total Hacks 13 | . 9 4 Successful 6 | . 4 2 Failed 7 | . 5 2 Catastrophic 1 | . . 1 Database Lockouts . | . . . Manual . | . . . Terminals 13 | . 9 4 Fabricators . | . . . Repair Stations . | . . . Recycling Units . | . . . Scanalyzers . | . . . Garrison Access . | . . . Terminal Hacks 6 | . 4 2 Record 4 | . 2 2 Robot Analysis 1 | . 1 . Zone Layout 1 | . 1 . Fabricator Hacks . | . . . Repair Station Hacks . | . . . Recycling Unit Hacks . | . . . Scanalyzer . | . . . Garrison Access Hacks . | . . . Unauthorized Hacks . | . . . Terminals . | . . . Fabricators . | . . . Repair Stations . | . . . Recycling Units . | . . . Scanalyzers . | . . . Garrison Access . | . . . Data Cores Recovered 1 | . 1 . Used . | . . . Hacking Detections 2 | . 1 1 Full Trace Events 1 | . . 1 Feedback Events . | . . . Feedback Blocked . | . . . Robot Schematics Acquired . | . . . Robots Built . | . . . Authchips . | . . . Time . | . . . Total Robot Build Rating . | . . . Part Schematics Acquired . | . . . Parts Built . | . . . Authchips . | . . . Time . | . . . Total Part Build Rating . | . . . Part Studies Acquired . | . . . Parts Repaired . | . . . Time . | . . . Parts Recycled . | . . . Recycled Matter . | . . . Retrieved Matter . | . . . Retrieved Components . | . . . Parts Scanalyzed . | . . . Part Schematics Acquired . | . . . Parts Damaged . | . . . Bothacking | -11 -10 -9 ------------ Run | Yrd Mat Mat Used RIF Installer . | . . . Robots Hacked . | . . . Non-combat . | . . . Combat . | . . . Robot Hacks Applied . | . . . Relay Couplers Released . | . . . Fabnet Peak Effective % . | . . . Robots Rewired . | . . . Allies Hacked . | . . . Hacks Repelled . | . . . Allies | -11 -10 -9 -------- Run | Yrd Mat Mat Total Allies . | . . . Largest Group . | . . . Highest-Rated Group . | . . . Highest-Rated Ally . | . . . Total Orders . | . . . Ally Attacks . | . . . Total Damage . | . . . Kills . | . . . Allies Corrupted . | . . . Allies Melted . | . . . Intel | -11 -10 -9 ------- Run | Yrd Mat Mat Active Infowar (turns) . | . . . Robot Analysis Total 1 | . 1 . Derelict Logs Recovered . | . . . Drone Launches . | . . . Drone Recoveries . | . . . Exploration | -11 -10 -9 ------------- Run | Yrd Mat Mat Turns Passed 667 | 52 385 230 Spaces Moved 533 | 49 276 208 Core 6 | 1 . 5 Treads . | . . . Legs 230 | . 195 35 Wheels 129 | 48 81 . Hover . | . . . Flight 168 | . . 168 Fastest Speed 31 | 50 80 31 Average Speed 85 | 79 108 57 Slowest Speed 250 | 80 120 250 Overloaded Moves . | . . . Propulsion Burnouts . | . . . Robots Hopped 1 | . . 1 Potential Cave-ins . | . . . Cave-ins Triggered . | . . . Exploration Rate (%) 21 | 3 36 25 Regions Visited 2 Branch Regions . Pre-discovered Areas . | . . . Known Exits Taken . | . . . Unknown Exits Taken 2 | 1 1 . Scrap Searched . | . . . Spaces Dug . | . . . Terrain Destroyed 34 | . . 34 Melee . | . . . Projectile . | . . . AOE 34 | . . 34 Terrain Rammed . | . . . Walls Destroyed . | . . . Machines Disabled . | . . . Actions | -11 -10 -9 --------- Run | Yrd Mat Mat Total 638 | 59 313 266 Wait 3 | . 1 2 Move 529 | 48 275 206 Hop 1 | . . 1 Pick Up 12 | 5 6 1 Fast Attach 11 | 5 . 6 Attach 11 | 1 . 10 Detach 3 | . . 3 Swap 5 | . 2 3 Drop 8 | . 2 6 Fire 52 | . 24 28 Melee . | . . . Ram . | . . . Kick 3 | . 3 . Crush . | . . . Escape Stasis . | . . . Rewire . | . . . Trap . | . . . Miscellaneous . | . . . Route ------- -11/Scrapyard -10/Materials -9/Materials History --------- Turn | Location | Event 20 | -11/Scrapyard | Discovered new exit (range 15) 53 | -11/Scrapyard | Entered Materials 272 | -10/Materials | Discovered new exit (range 7) 314 | -10/Materials | Build established: Mutant 438 | -10/Materials | Entered another Materials area 438 | -9/Materials | Evolved 2 slots: Propulsion x2 641 | -9/Materials | Core integrity fell below 50% 657 | -9/Materials | Core integrity fell below 20% 668 | -9/Materials | Destroyed by G-47 Trooper with Particle Gun Last Messages --------------- 00654_ L-31 Rogue knocked back. 00656_ L-31 Rogue destroyed. 00657_ U-05 Engineer lays Concrete. 00659_ Acquired 14 matter. 00660_ U-05 Engineer lays Concrete. [Achievement: Hydra] Notice for Steam players: Cogmind player global achievement rates displayed by Steam are all underreported, in many cases by a huge margin, due to how they are calculated by Valve. 00661_ U-05 Engineer lays Concrete. 00663_ Acquired 3 matter. 00663_ U-05 Engineer lays Concrete. 00663_ Critical hit (Burn: +37). 00664_ U-05 Engineer lays Concrete. 00665_ M-13 Machinist repairs Y-45 Defender. 00666_ U-05 Engineer builds a Wall. 00666_ Lgt. Cannon destroyed. 00666_ Flight Unit destroyed. 00666_ Critical hit (Burn: +37). Map ----- +----------------------------------------------------+ | #?????#####+### #????????????????????? | | ######???????### ### =]/ #????????????????????? | | ?????????????# # =] #????????????????????? | | ?????????????# # =/ """ #????????????????????? | | ?????????????# " + """ #????????????????????? | | ?????????????# # """ #????????????????????? | | ?????????????# [ # #????????????????????? | | ?????????????## ###########????????????????????? | | ??????????????# # ???????????????????? | | ??????????????# # " ???????????????????? | | ??????????????+ + " ???????????????????? | | ??????????????# # ? #????????????????? | | ??????????????# ###### ## #????????????????? | | ############### ####! # ######???????????? | | [ = %%| = ??????????? | | [ ==% =% ??????????? | | ^%[ %u ??????????? | | ######################m ############?????????????? | | ???????????????????# *[Yg #???????????????????? | | ???????????????????# g ????????????????????? | | ???????????????????# #????????????????????? | | ???????????????????# #????????????????????? | | ???????????????????# % #????????????????????? | | ???????????????????# #????????????????????? | | ???????????????????# %%%#????????????????????? | | ???????????????????# !! @ #????????????????????? | | ???????????????????# ! #????????????????????? | | ???????????????????##########????????????????????? | | ?????????????????????????????????????????????????? | | ?????????????????????????????????????????????????? | | ?????????????????????????????????????????????????? | | ?????????????????????????????????????????????????? | | | | | | | | | | | | | | | | | | | | | | | | | | | | | | | | | | | | | +----------------------------------------------------+ Best States ------------- Heat Dissipation 28 Energy Generation 10 Energy Capacity 125 Matter Stores 300 Matter Capacity 300 Sight Range 16 Terrain Scan Density 10 Evasion (%) 63 Item Schematics ----------------- None Robot Schematics ------------------ None Fabricated ------------ Nothing Repaired ---------- Nothing Studied --------- None Alien Tech Used ----------------- None Achievements -------------- Hydra Challenges ------------ None Game ------ Seed PrecisionAlloyChip Manual? 0 Play Time 00:28:36 Cumulative 2.5 hours Start 2026.09.03 @ 11:44:16 End 2026.09.04 @ 22:03:39 Sessions 5 Manual Loads 0 Difficulty Rogue Special Mode None Game No. 5 Rogue 5 Adventurer 0 Explorer 0 Win Type - Total 0 Types 0/0/0/0/0/0/0/0/0/0 Lore% 4 Gallery% 5 Achievement% 8 Wizard Run 0 Options --------- Layout 1 ASCII 0 Keyboard 1 Movement Arrows Keybinds 0 Fullscreen 1 Font 24/Smallcaps Map View 50x35 Zoom Use 0% Tactical HUD 1 Map Filters NONE Filters NONE Steam 1 RUN: de48b40b-7b7e-4acd-96e1-291ddf2ecdb7